lending/lending_fUSD_20241212
["ID","MTS","AMOUNT","RATE_DAILY","PERIOD"]
[345122854,1734045047306,-151.0,0.0002,2]
[345122855,1734045047315,-151.0,0.0002,2]
[345122856,1734045047325,-151.0,0.0002,2]
[345122857,1734045047334,-151.0,0.0002,2]
[345122858,1734045047343,-151.0,0.0002,2]
[345122859,1734045047352,-151.0,0.0002,2]
[345122860,1734045047363,-151.0,0.0002,2]
[345122861,1734045047372,-151.0,0.0002,2]
[345122862,1734045047382,-190.064715,0.0002,2]
[345122863,1734045047392,-190.064715,0.0002,2]
[345122864,1734045047402,-190.064715,0.0002,2]
[345122865,1734045047412,-190.064715,0.0002,2]
[345122866,1734045047421,-190.064715,0.0002,2]
[345122867,1734045047431,-190.064715,0.0002,2]
[345122868,1734045047441,-190.064715,0.0002,2]
[345122869,1734045047451,-190.064715,0.0002,2]
[345122870,1734045047460,-231.313639,0.0002,2]
[345122871,1734045047470,-151.0,0.0002,2]
[345122872,1734045047480,-151.0,0.0002,2]
[345122873,1734045047489,-151.0,0.0002,2]
[345122874,1734045047499,-718.2021,0.0002,2]
[345122875,1734045047508,-718.2021,0.0002,2]
[345122876,1734045047518,-718.2021,0.0002,2]
[345122877,1734045047528,-718.2021,0.0002,2]
[345122878,1734045047537,-718.2021,0.0002,2]
[345122879,1734045047547,-718.2021,0.0002,2]
[345122880,1734045047556,-718.2021,0.0002,2]
[345122881,1734045047566,-718.2021,0.0002,2]
[345122882,1734045047575,-151.0,0.0002,2]
[345122883,1734045047585,-151.0,0.0002,2]
[345122884,1734045047594,-151.0,0.0002,2]
[345122885,1734045047604,-151.0,0.0002,2]
[345122886,1734045047614,-151.0,0.0002,2]
[345122887,1734045047623,-151.0,0.0002,2]
[345122888,1734045047632,-213.237678,0.0002,2]
[345122889,1734045047642,-263.230985,0.0002,2]
[345122890,1734045047651,-263.230985,0.0002,2]
[345122891,1734045047660,-263.230985,0.0002,2]
[345122892,1734045047670,-263.230985,0.0002,2]
[345122893,1734045047679,-263.230985,0.0002,2]
[345122894,1734045047689,-263.230985,0.0002,2]
[345122895,1734045047699,-263.230985,0.0002,2]
[345122896,1734045047709,-263.230985,0.0002,2]
[345122897,1734045047719,-191.930242,0.0002,2]
[345122898,1734045047729,-191.930242,0.0002,2]
[345122899,1734045047748,-191.930242,0.0002,2]
[345122900,1734045047758,-191.930242,0.0002,2]
[345122901,1734045047767,-191.930242,0.0002,2]
[345122902,1734045047776,-191.930242,0.0002,2]
[345122903,1734045047786,-191.930242,0.0002,2]
[345122904,1734045047796,-191.930242,0.0002,2]
[345122905,1734045047806,-250.0,0.0002,2]
[345122906,1734045047815,-696.299575,0.0002,2]
[345122907,1734045047824,-151.0,0.0002,2]
[345122908,1734045047834,-151.0,0.0002,2]
[345122909,1734045047843,-151.0,0.0002,2]
[345122910,1734045047852,-151.0,0.0002,2]
[345122911,1734045047862,-151.0,0.0002,2]
[345122912,1734045047871,-151.0,0.0002,2]
[345122913,1734045047881,-151.0,0.0002,2]
[345122914,1734045047891,-151.0,0.0002,2]
[345122915,1734045047900,-1996.634944,0.0002,2]
[345122916,1734045047910,-1996.634944,0.0002,2]
[345122917,1734045047920,-1996.634944,0.0002,2]
[345122918,1734045047930,-1996.634944,0.0002,2]
[345122919,1734045047939,-151.0,0.0002,2]
[345122920,1734045047949,-151.0,0.0002,2]
[345122921,1734045047959,-151.0,0.0002,2]
[345122922,1734045047969,-151.0,0.0002,2]
[345122923,1734045047979,-1996.634944,0.0002,2]
[345122924,1734045047992,-1996.634944,0.0002,2]
[345122925,1734045048002,-1996.634944,0.0002,2]
[345122926,1734045048012,-1996.634944,0.0002,2]
[345122927,1734045048021,-151.0,0.0002,2]
[345122928,1734045048031,-238.39148118,0.0002,2]
[345122929,1734045048041,-310.378242,0.0002,2]
[345122930,1734045048050,-310.378242,0.0002,2]
[345122931,1734045048060,-310.378242,0.0002,2]
[345122932,1734045048070,-310.378242,0.0002,2]
[345122933,1734045048079,-359.941899,0.0002,2]
[345122934,1734045048090,-359.941899,0.0002,2]
[345122935,1734045048100,-359.941899,0.0002,2]
[345122936,1734045048110,-359.941899,0.0002,2]
[345122937,1734045048123,-310.378242,0.0002,2]
[345122938,1734045048133,-310.378242,0.0002,2]
[345122939,1734045048142,-310.378242,0.0002,2]
[345122940,1734045048152,-310.378242,0.0002,2]
[345122941,1734045048162,-359.941899,0.0002,2]
[345122942,1734045048172,-359.941899,0.0002,2]
[345122943,1734045048182,-359.941899,0.0002,2]
[345122944,1734045048192,-359.941899,0.0002,2]
[345122945,1734045048202,-151.0,0.0002,2]
[345122946,1734045048212,-151.0,0.0002,2]
[345122947,1734045048221,-151.0,0.0002,2]
[345122948,1734045048233,-151.0,0.0002,2]
[345122949,1734045048243,-151.0,0.0002,2]
[345122950,1734045048388,-151.0,0.0002,2]
[345122951,1734045048399,-151.0,0.0002,2]
[345122952,1734045048410,-151.0,0.0002,2]
[345122953,1734045048420,-282.0,0.0002,2]
[345122954,1734045048430,-151.0,0.0002,2]
[345122955,1734045048440,-151.0,0.0002,2]
[345122956,1734045048450,-151.0,0.0002,2]
[345122957,1734045048459,-151.0,0.0002,2]
[345122958,1734045048468,-151.0,0.0002,2]
[345122959,1734045048479,-195.198944,0.0002,2]
[345122960,1734045048493,-898.911841,0.0002,2]
[345122961,1734045048503,-898.911841,0.0002,2]
[345122962,1734045048522,-898.911841,0.0002,2]
[345122963,1734045048535,-898.911841,0.0002,2]
[345122964,1734045048546,-158.0,0.0002,2]
[345122965,1734045048557,-898.911841,0.0002,2]
[345122966,1734045048568,-898.911841,0.0002,2]
[345122967,1734045048579,-898.911841,0.0002,2]
[345122968,1734045048590,-898.911841,0.0002,2]
[345122969,1734045048600,-233.497008,0.0002,2]
[345122970,1734045048610,-233.497008,0.0002,2]
[345122971,1734045048620,-153.345079,0.0002,2]
[345122972,1734045048631,-233.497008,0.0002,2]
[345122973,1734045048642,-153.345079,0.0002,2]
[345122974,1734045048653,-233.497008,0.0002,2]
[345122975,1734045048663,-153.345079,0.0002,2]
[345122976,1734045048674,-153.345079,0.0002,2]
[345122977,1734045048685,-151.0,0.0002,2]
[345122978,1734045048695,-151.0,0.0002,2]
[345122979,1734045048706,-151.0,0.0002,2]
[345122980,1734045048716,-151.0,0.0002,2]
[345122981,1734045048727,-233.497008,0.0002,2]
[345122982,1734045048742,-233.497008,0.0002,2]
[345122983,1734045048752,-153.345079,0.0002,2]
[345122984,1734045048763,-233.497008,0.0002,2]
[345122985,1734045048773,-153.345079,0.0002,2]
[345122986,1734045048783,-153.345079,0.0002,2]
[345122987,1734045048793,-233.497008,0.0002,2]
[345122988,1734045048803,-151.0,0.0002,2]
[345122989,1734045048814,-153.345079,0.0002,2]
[345122990,1734045048824,-151.0,0.0002,2]
[345122991,1734045048834,-151.0,0.0002,2]
[345122992,1734045048845,-151.0,0.0002,2]
[345122993,1734045048855,-465.792339,0.0002,2]
[345122994,1734045048865,-465.792339,0.0002,2]
[345122995,1734045048875,-465.792339,0.0002,2]
[345122996,1734045048885,-465.792339,0.0002,2]
[345122997,1734045048895,-465.792339,0.0002,2]
[345122998,1734045048904,-465.792339,0.0002,2]
[345122999,1734045048914,-465.792339,0.0002,2]
[345123000,1734045048924,-465.792339,0.0002,2]
[345123001,1734045048934,-151.0,0.0002,2]
[345123002,1734045048944,-151.0,0.0002,2]
[345123003,1734045048954,-151.0,0.0002,2]
[345123004,1734045048964,-151.0,0.0002,2]
[345123005,1734045048975,-276.71634,0.0002,2]
[345123006,1734045048986,-276.71634,0.0002,2]
[345123007,1734045048997,-276.71634,0.0002,2]
[345123008,1734045049007,-276.71634,0.0002,2]
[345123009,1734045049017,-276.71634,0.0002,2]
[345123010,1734045049027,-276.71634,0.0002,2]
[345123011,1734045049037,-276.71634,0.0002,2]
[345123012,1734045049047,-276.71634,0.0002,2]
[345123013,1734045049057,-151.0,0.0002,2]
[345123014,1734045049067,-151.0,0.0002,2]
[345123015,1734045049078,-254.223358,0.0002,2]
[345123016,1734045049089,-309.077637,0.0002,2]
[345123017,1734045049099,-309.077637,0.0002,2]
[345123018,1734045049108,-309.077637,0.0002,2]
[345123019,1734045049120,-309.077637,0.0002,2]
[345123020,1734045049130,-309.077637,0.0002,2]
[345123021,1734045049140,-309.077637,0.0002,2]
[345123022,1734045049150,-309.077637,0.0002,2]
[345123023,1734045049159,-309.077637,0.0002,2]
[345123024,1734045049170,-151.0,0.0002,2]
[345123025,1734045049179,-151.0,0.0002,2]
[345123026,1734045049189,-151.0,0.0002,2]
[345123027,1734045049200,-151.0,0.0002,2]
[345123028,1734045049210,-151.0,0.0002,2]
[345123029,1734045049220,-151.0,0.0002,2]
[345123030,1734045049230,-151.0,0.0002,2]
[345123031,1734045049239,-151.0,0.0002,2]
[345123032,1734045049249,-151.0,0.0002,2]
[345123033,1734045049259,-488.712338,0.0002,2]
[345123034,1734045049268,-488.712338,0.0002,2]
[345123035,1734045049279,-488.712338,0.0002,2]
[345123036,1734045049288,-488.712338,0.0002,2]
[345123037,1734045049298,-488.712338,0.0002,2]
[345123038,1734045049308,-488.712338,0.0002,2]
[345123039,1734045049318,-488.712338,0.0002,2]
[345123040,1734045049327,-488.712338,0.0002,2]
[345123041,1734045049337,-794.33963,0.0002,2]
[345123042,1734045049347,-794.33963,0.0002,2]
[345123043,1734045049356,-794.33963,0.0002,2]
[345123044,1734045049366,-794.33963,0.0002,2]
[345123045,1734045049376,-793.098603,0.0002,2]
[345123046,1734045049385,-793.098603,0.0002,2]
[345123047,1734045049395,-793.098603,0.0002,2]
[345123048,1734045049405,-794.33963,0.0002,2]
[345123049,1734045049415,-793.098603,0.0002,2]
[345123050,1734045049424,-794.33963,0.0002,2]
[345123051,1734045049434,-794.33963,0.0002,2]
[345123052,1734045049443,-794.33963,0.0002,2]
[345123053,1734045049453,-215.761172,0.0002,2]
[345123054,1734045049462,-215.761172,0.0002,2]
[345123055,1734045049472,-215.761172,0.0002,2]
[345123056,1734045049482,-215.761172,0.0002,2]
[345123057,1734045049492,-793.098603,0.0002,2]
[345123058,1734045049502,-151.0,0.0002,2]
[345123059,1734045049512,-793.098603,0.0002,2]
[345123060,1734045049522,-151.0,0.0002,2]
[345123061,1734045049532,-793.098603,0.0002,2]
[345123062,1734045049542,-151.0,0.0002,2]
[345123063,1734045049552,-793.098603,0.0002,2]
[345123064,1734045049562,-151.0,0.0002,2]
[345123065,1734045049571,-215.761172,0.0002,2]
[345123066,1734045049581,-215.761172,0.0002,2]
[345123067,1734045049591,-151.0,0.0002,2]
[345123068,1734045049600,-215.761172,0.0002,2]
[345123069,1734045049610,-264.92376,0.0002,2]
[345123070,1734045049620,-215.761172,0.0002,2]
[345123071,1734045049629,-150.0,0.0002,2]
[345123072,1734045049639,-150.0,0.0002,2]
[345123073,1734045049648,-776.0,0.0002,2]
[345123074,1734045049658,-150.0,0.0002,2]
[345123075,1734045049668,-150.0,0.0002,2]
[345123076,1734045049678,-150.0,0.0002,2]
[345123077,1734045049688,-150.0,0.0002,2]
[345123078,1734045049697,-156.84763884,0.00020043,2]
[345123079,1734045049707,-150.0,0.00020045,2]
[345123080,1734045049717,-3879.0,0.00020045,2]
[345123081,1734045049729,-13728.0,0.00020045,2]
[345123082,1734045049743,-1099.0,0.00020045,2]
[345123083,1734045049753,-500.121307,0.00020098,2]
[345123084,1734045049763,-531.96,0.00020129,2]
[345123085,1734045049773,-160.14369709,0.00020136,2]
[345123086,1734045049783,-172.356,0.00020157,2]
[345123087,1734045049793,-757.39332461,0.00020197,2]
[345123088,1734045049802,-500.121307,0.00020198,2]
[345123089,1734045049812,-500.121307,0.00020198,2]
[345123090,1734045049822,-500.121307,0.00020198,2]
[345123091,1734045049831,-500.121307,0.00020198,2]
[345123092,1734045049842,-500.121307,0.00020198,2]
[345123093,1734045049852,-235.34077,0.00020207,2]
[345123094,1734045049862,-235.34077,0.00020207,2]
[345123095,1734045049872,-198.237353,0.00020207,2]
[345123096,1734045049882,-198.237353,0.00020207,2]
[345123097,1734045049892,-215.609735,0.00020207,2]
[345123098,1734045049903,-151.0,0.00020207,2]
[345123099,1734045049913,-180.501216,0.00020207,2]
[345123100,1734045049923,-180.501216,0.00020207,2]
[345123101,1734045049932,-291.181248,0.00020207,2]
[345123102,1734045049943,-291.181248,0.00020207,2]
[345123103,1734045049953,-158.139776,0.00020207,2]
[345123104,1734045049962,-151.0,0.00020207,2]
[345123105,1734045049977,-158.139776,0.00020207,2]
[345123106,1734045049987,-151.0,0.00020207,2]
[345123107,1734045049997,-151.0,0.00020207,2]
[345123108,1734045050006,-151.0,0.00020207,2]
[345123109,1734045050016,-190.064715,0.00020207,2]
[345123110,1734045050026,-190.064715,0.00020207,2]
[345123111,1734045050038,-718.2021,0.00020207,2]
[345123112,1734045050048,-718.2021,0.00020207,2]
[345123113,1734045050057,-151.0,0.00020207,2]
[345123114,1734045050067,-263.230985,0.00020207,2]
[345123115,1734045050076,-263.230985,0.00020207,2]
[345123116,1734045050086,-191.930242,0.00020207,2]
[345123117,1734045050095,-191.930242,0.00020207,2]
[345123118,1734045050105,-151.0,0.00020207,2]
[345123119,1734045050114,-151.0,0.00020207,2]
[345123120,1734045050124,-1996.634944,0.00020207,2]
[345123121,1734045050133,-151.0,0.00020207,2]
[345123122,1734045050143,-1996.634944,0.00020207,2]
[345123123,1734045050152,-310.378242,0.00020207,2]
[345123124,1734045050162,-359.941899,0.00020207,2]
[345123125,1734045050172,-310.378242,0.00020207,2]
[345123126,1734045050182,-359.941899,0.00020207,2]
[345123127,1734045050191,-151.0,0.00020207,2]
[345123128,1734045050202,-151.0,0.00020207,2]
[345123129,1734045050212,-151.0,0.00020207,2]
[345123130,1734045050223,-898.911841,0.00020207,2]
[345123131,1734045050234,-898.911841,0.00020207,2]
[345123132,1734045050243,-233.497008,0.00020207,2]
[345123133,1734045050253,-153.345079,0.00020207,2]
[345123134,1734045050262,-151.0,0.00020207,2]
[345123135,1734045050271,-233.497008,0.00020207,2]
[345123136,1734045050282,-153.345079,0.00020207,2]
[345123137,1734045050292,-151.0,0.00020207,2]
[345123138,1734045050301,-465.792339,0.00020207,2]
[345123139,1734045050311,-465.792339,0.00020207,2]
[345123140,1734045050321,-151.0,0.00020207,2]
[345123141,1734045050330,-276.71634,0.00020207,2]
[345123142,1734045050339,-276.71634,0.00020207,2]
[345123143,1734045050349,-309.077637,0.00020207,2]
[345123144,1734045050358,-309.077637,0.00020207,2]
[345123145,1734045050367,-151.0,0.00020207,2]
[345123146,1734045050376,-297.275843,0.00020207,2]
[345123147,1734045050386,-488.712338,0.00020207,2]
[345123148,1734045050395,-488.712338,0.00020207,2]
[345123149,1734045050404,-794.33963,0.00020207,2]
[345123150,1734045050413,-793.098603,0.00020207,2]
[345123151,1734045050423,-794.33963,0.00020207,2]
[345123152,1734045050432,-215.761172,0.00020207,2]
[345123153,1734045050442,-793.098603,0.00020207,2]
[345123154,1734045050453,-215.761172,0.00020207,2]
[345123155,1734045050463,-158.876,0.00020208,2]
[345123156,1734045050472,-183.158,0.00020208,2]
[345123157,1734045050482,-204.269,0.00020208,2]
[345123158,1734045050491,-196.567,0.00020208,2]
[345123159,1734045050500,-1263.0,0.00020208,2]
[345123160,1734045050511,-567.0,0.00020208,2]
[345123161,1734045050520,-631.0,0.00020208,2]
[345123162,1734045050531,-152.242,0.00020208,2]
[345123163,1734045050540,-2006.0,0.00020208,2]
[345123164,1734045050550,-564.0,0.00020208,2]
[345123165,1734045050560,-1895.0,0.00020208,2]
[345123166,1734045050569,-3764.0,0.00020208,2]
[345123167,1734045050579,-1253.0,0.00020208,2]
[345123168,1734045050588,-817.0,0.00020208,2]
[345123169,1734045050598,-930.0,0.00020208,2]
[345123170,1734045050608,-535.0,0.00020208,2]
[345123171,1734045050617,-3629.0,0.00020208,2]
[345123172,1734045050626,-165.62,0.00020229,2]
[345123173,1734045050636,-156.84763884,0.00020264,2]
[345123174,1734045050645,-259.34512281,0.00020274,2]
[345123175,1734045050655,-776.0,0.00020274,2]
[345123176,1734045050667,-150.0,0.00020274,2]
[345123177,1734045050676,-500.121307,0.00020298,2]
[345123178,1734045050686,-500.121307,0.00020298,2]
[345123179,1734045050695,-151.0,0.00020298,2]
[345123180,1734045050704,-151.0,0.00020405,2]
[345123181,1734045050714,-160.14369709,0.00020472,2]
[345123182,1734045050723,-156.84763884,0.00020486,2]
[345123183,1734045050733,-300.121307,0.00020498,3]
[345123184,1734045050750,-300.121307,0.00020498,3]
[345123185,1734045050759,-300.121307,0.00020498,3]
[345123186,1734045050769,-300.121307,0.00020498,3]
[345123187,1734045050779,-300.121307,0.00020498,3]
[345123188,1734045050792,-300.121307,0.00020498,3]
[345123189,1734045050801,-300.121307,0.00020498,3]
[345123190,1734045050949,-500.0,0.00020498,2]
[345123191,1734045050960,-500.0,0.00020498,2]
[345123192,1734045050970,-500.0,0.00020498,2]
[345123193,1734045050979,-500.0,0.00020498,2]
[345123194,1734045050989,-500.0,0.00020498,2]
[345123195,1734045050999,-500.0,0.00020498,2]
[345123196,1734045051009,-500.0,0.00020498,2]
[345123197,1734045051018,-500.0,0.00020498,2]
[345123198,1734045051027,-500.0,0.00020498,2]
[345123199,1734045051036,-500.0,0.00020498,2]
[345123200,1734045051045,-1000.0,0.00020521,2]
[345123201,1734045051054,-165.38075314,0.00020525,2]
[345123202,1734045051063,-776.0,0.00020548,2]
[345123203,1734045051073,-200.0,0.00020548,2]
[345123204,1734045051083,-500.0,0.00020657,2]
[345123205,1734045051093,-900.0,0.00020657,2]
[345123206,1734045051102,-2400.0,0.00020657,2]
[345123207,1734045051111,-377.72,0.00020676,2]
[345123208,1734045051124,-300.121307,0.00020698,4]
[345123209,1734045051134,-300.121307,0.00020698,4]
[345123210,1734045051143,-425.121307,0.00020698,2]
[345123211,1734045051152,-156.84763884,0.00020708,2]
[345123212,1734045051163,-300.121306,0.00020798,5]
[345123213,1734045051172,-300.121306,0.00020798,5]
[345123214,1734045051181,-300.121306,0.00020798,4]
[345123215,1734045051191,-300.121306,0.00020798,4]
[345123216,1734045051209,-300.121306,0.00020798,4]
[345123217,1734045051222,-300.121306,0.00020798,4]
[345123218,1734045051232,-300.121306,0.00020798,4]
[345123219,1734045051242,-300.121307,0.00020798,5]
[345123220,1734045051256,-300.121307,0.00020798,5]
[345123221,1734045051269,-300.121307,0.00020798,5]
[345123222,1734045051279,-1000.0,0.00020803,2]
[345123223,1734045051289,-160.14369709,0.00020809,2]
[345123224,1734045051299,-776.0,0.00020822,2]
[345123225,1734045051310,-162.08757663,0.0002089,5]
[345123226,1734045051320,-300.121306,0.00020898,5]
[345123227,1734045051330,-300.121306,0.00020898,5]
[345123228,1734045051339,-156.84763884,0.0002093,2]
[345123229,1734045051349,-5000.0,0.00021,5]
[345123230,1734045051358,-650.0,0.00021,2]
[345123231,1734045051368,-689.69,0.00021018,2]
[345123232,1734045051377,-243.656801,0.00021093,2]
[345123233,1734045051386,-243.656801,0.00021093,2]
[345123234,1734045051395,-151.0,0.00021093,2]
[345123235,1734045051404,-776.0,0.00021096,2]
[345123236,1734045051414,-300.121306,0.00021098,6]
[345123237,1734045051423,-300.121306,0.00021098,6]
[345123238,1734045051432,-165.62,0.00021138,2]
[345123239,1734045051442,-165.38075314,0.0002115,2]
[345123240,1734045051451,-156.84763884,0.00021152,2]
[345123241,1734045051460,-300.121306,0.00021198,6]
[345123242,1734045051470,-300.121306,0.00021198,6]
[345123243,1734045051479,-300.121306,0.00021198,6]
[345123244,1734045051489,-300.121306,0.00021198,6]
[345123245,1734045051498,-300.121306,0.00021198,6]
[345123246,1734045051508,-158.139776,0.000212,2]
[345123247,1734045051517,-151.0,0.000212,2]
[345123248,1734045051527,-158.139776,0.000212,2]
[345123249,1734045051536,-151.0,0.000212,2]
[345123250,1734045051545,-190.064715,0.000212,2]
[345123251,1734045051554,-190.064715,0.000212,2]
[345123252,1734045051563,-1996.634944,0.000212,2]
[345123253,1734045051572,-151.0,0.000212,2]
[345123254,1734045051582,-1996.634944,0.000212,2]
[345123255,1734045051591,-310.378242,0.000212,2]
[345123256,1734045051600,-359.941899,0.000212,2]
[345123257,1734045051610,-310.378242,0.000212,2]
[345123258,1734045051619,-359.941899,0.000212,2]
[345123259,1734045051629,-151.0,0.000212,2]
[345123260,1734045051638,-898.911841,0.000212,2]
[345123261,1734045051647,-2700.0,0.000212,7]
[345123262,1734045051656,-898.911841,0.000212,2]
[345123263,1734045051666,-276.71634,0.000212,2]
[345123264,1734045051676,-276.71634,0.000212,2]
[345123265,1734045051685,-309.077637,0.000212,2]
[345123266,1734045051694,-309.077637,0.000212,2]
[345123267,1734045051705,-312.15872293,0.00021238,2]
[345123268,1734045051715,-3009.94804862,0.00021242,2]
[345123269,1734045051726,-3009.94804862,0.00021243,2]
[345123270,1734045051736,-383.72218296,0.00021243,2]
[345123271,1734045051753,-3259.82623231,0.00021243,2]
[345123272,1734045051763,-371.28342016,0.00021244,2]
[345123273,1734045051772,-371.28342016,0.0002125,2]
[345123274,1734045051782,-312.15872293,0.00021252,2]
[345123275,1734045051793,-383.72218296,0.00021252,2]
[345123276,1734045051803,-383.72218296,0.00021252,2]
[345123277,1734045051813,-3009.94804862,0.00021253,2]
[345123278,1734045051822,-321.73871266,0.00021254,2]
[345123279,1734045051832,-3009.94804862,0.00021255,2]
[345123280,1734045051842,-200.0,0.00021256,2]
[345123281,1734045051851,-3259.82623231,0.00021259,2]
[345123282,1734045051860,-198.237353,0.0002126,2]
[345123283,1734045051870,-198.237353,0.0002126,2]
[345123284,1734045051879,-215.609735,0.0002126,2]
[345123285,1734045051888,-180.501216,0.0002126,2]
[345123286,1734045051898,-180.501216,0.0002126,2]
[345123287,1734045051907,-718.2021,0.0002126,2]
[345123288,1734045051918,-718.2021,0.0002126,2]
[345123289,1734045051927,-151.0,0.0002126,2]
[345123290,1734045051936,-263.230985,0.0002126,2]
[345123291,1734045051946,-263.230985,0.0002126,2]
[345123292,1734045051955,-191.930242,0.0002126,2]
[345123293,1734045051965,-191.930242,0.0002126,2]
[345123294,1734045051974,-151.0,0.0002126,2]
[345123295,1734045051984,-151.0,0.0002126,2]
[345123296,1734045051994,-151.0,0.0002126,2]
[345123297,1734045052004,-151.0,0.0002126,2]
[345123298,1734045052014,-233.497008,0.0002126,2]
[345123299,1734045052024,-153.345079,0.0002126,2]
[345123300,1734045052033,-151.0,0.0002126,2]
[345123301,1734045052042,-233.497008,0.0002126,2]
[345123302,1734045052052,-153.345079,0.0002126,2]
[345123303,1734045052061,-72.80392858,0.0002126,2]
[345123312,1734045506769,167.32,0.00010137,2]
[345123352,1734045908985,357779.13,0.0001,2]
[345123353,1734045909013,5000.0,0.0001,2]
[345123354,1734045909046,146759.14049798,0.0001,2]
[345123355,1734045932275,1044.03153725,0.0001,2]
[345123356,1734046031132,-155.59,0.00013699,2]
[345123357,1734046031173,-520.79466218,0.00015,2]
[345123360,1734046042092,-3679.58765712,0.00015,2]
[345123361,1734046052097,-441.89646399,0.00015,2]
[345123362,1734046052119,-1587.34205777,0.000154,2]
[345123363,1734046052142,-546.10690695,0.00017671,2]
[345123371,1734046150139,-681.463562,0.00011839,2]
[345123372,1734046150161,-300.0,0.00011899,2]
[345123373,1734046150182,-360.61224567,0.00011899,2]
[345123391,1734046232046,-191.67798,0.00011739,2]
[345123392,1734046232057,-2233.05017496,0.00011799,2]
[345123393,1734046232082,-299.99,0.00011799,2]
[345123394,1734046232116,-447.2697999,0.00011799,2]
[345123395,1734046232252,-5337.78546824,0.00011799,2]
[345123396,1734046232262,-1913.14038719,0.00011799,2]
[345123397,1734046232271,-336.8799473,0.0001189,2]
[345123398,1734046232280,-336.8799473,0.0001189,2]
[345123399,1734046232290,-666.0,0.00011899,2]
[345123400,1734046232299,-150.0,0.00011899,2]
[345123401,1734046232308,-266.53898851,0.00011899,2]
[345123402,1734046232317,-209.59345143,0.00011899,2]
[345123403,1734046232330,-158.35566489,0.00011899,2]
[345123404,1734046232339,-33.62611682,0.00011899,2]
[345123523,1734046238010,-241.96013125,0.00011899,2]
[345123524,1734046238020,-410.80098263,0.00011899,2]
[345123525,1734046238030,-94.2388631,0.00011899,2]
[345123526,1734046238041,-405.7611369,0.00011899,2]
[345123527,1734046238051,-486.73460223,0.00011899,2]
[345123528,1734046238060,-500.0,0.00011899,2]
[345123529,1734046238069,-500.0,0.00011899,2]
[345123530,1734046238084,-392.60987181,0.00011899,2]
[345123531,1734046238094,-1413.98169199,0.000119,2]
[345123532,1734046238257,-59636.20242765,0.000119,2]
[345124050,1734046243880,-745.66465666,0.000119,2]
[345124058,1734046243949,-25042.5,0.000119,2]
[345124066,1734046244016,-409.08773567,0.000119,2]
[345124068,1734046244028,-6244.3993356,0.000119,2]
[345124298,1734046246195,-4092.5499475,0.000119,2]
[345124315,1734046246344,-30374.0,0.00011781,2]
[345124317,1734046246353,-342759.10987744,0.000119,2]
[345124319,1734046246365,-4029.76950855,0.000119,2]
[345124321,1734046246377,-664.57962606,0.000119,2]
[345125464,1734046390079,1000.0,0.00017,90]
[345125465,1734046392592,181.04,0.00010137,2]
[345125468,1734047227126,-1844.235004,0.00011504,2]